bitfinex/quotes_ETHUSD_20250215
["timestamp","ask_amount","ask_price","bid_price","bid_amount"]
[1739598857407,0.259,2721.8,2721.3,0.7561]
[1739598857609,0.259,2721.8,2721.5,0.7688]
[1739598857816,4.6684285,2721.9,2721.6,3.6743]
[1739598858128,4.6684285,2721.9,2721.7,0.7688]
[1739598858327,4.4094285,2721.9,2721.7,0.7688]
[1739598858534,4.6684285,2721.9,2721.7,0.7688]
[1739598859629,4.4094285,2721.9,2721.7,4.44293]
[1739598859827,4.4094285,2721.9,2721.7,0.7688]
[1739598861234,4.4094285,2721.9,2721.7,4.44296]
[1739598862037,4.4094285,2721.9,2721.8,0.7688]
[1739598862232,0.259,2722.1,2721.8,0.7688]
[1739598871641,0.259,2722.2,2722.0,1.57901486]
[1739598872025,0.259,2722.2,2722.1,0.8186]
[1739598872657,3.93225,2722.4,2722.1,0.8186]
[1739598873437,0.259,2722.4,2722.1,0.8186]
[1739598883165,3.93231,2722.4,2722.1,0.8186]
[1739598883356,5.48716421,2722.4,2722.1,0.8186]
[1739598884556,3.93231,2722.4,2722.1,0.8186]
[1739598899403,7.60566,2722.4,2722.1,0.8186]
[1739598900357,3.93231,2722.4,2722.1,0.8186]
[1739598900975,3.67349,2722.2,2721.8,0.7571]
[1739598903626,3.67349,2722.2,2721.8,3.7571]
[1739598903795,3.67349,2722.2,2721.8,5.33611486]
[1739598905087,7.6056,2722.4,2721.8,9.01013486]
[1739598905398,3.67338,2722.3,2721.8,5.33611486]
[1739598909122,7.34684,2722.3,2721.8,5.33611486]
[1739598910194,8.62467685,2722.3,2721.8,3.7571]
[1739598912032,4.95121685,2722.3,2721.8,3.7571]
[1739598912340,8.62468685,2722.3,2721.8,3.7571]
[1739598914413,3.6735,2722.2,2721.8,3.7571]
[1739598915902,3.67338,2722.3,2721.8,3.7571]
[1739598917539,7.34684,2722.3,2721.8,3.7571]
[1739598918041,3.67338,2722.3,2721.8,3.7571]
[1739598920937,3.67338,2722.3,2721.9,3.7527]
[1739598921139,3.67338,2722.3,2721.9,0.7527]
[1739598924337,3.93232,2722.4,2721.9,0.7527]
[1739598924543,3.6734,2722.3,2721.9,0.7527]
[1739598934674,3.6734,2722.3,2721.9,0.7527]
[1739598935948,3.6734,2722.3,2721.7,0.8]
[1739598935949,3.67371,2722.1,2721.7,0.8]
[1739598936159,3.67392,2721.9,2721.7,0.8]
[1739598936319,3.67392,2721.9,2721.4,0.8]
[1739598936525,3.67408,2721.8,2721.4,0.8]
[1739598937059,3.67417,2721.7,2721.4,0.8]
[1739598937456,3.67417,2721.7,2720.9,12.42519]
[1739598937457,0.7537,2721.6,2720.9,5.25420486]
[1739598937659,0.7537,2721.6,2721.0,0.8]
[1739598937835,0.259,2721.5,2721.0,0.8]
[1739598938239,3.93354,2721.5,2721.1,1.57901486]
[1739598938558,0.259,2721.5,2721.2,0.8]
[1739598938986,0.20950417,2721.5,2721.2,0.8]
[1739598943271,3.88394417,2721.5,2721.2,0.8]
[1739598946694,0.20950417,2721.5,2721.3,1.37886328]
[1739598946987,0.259,2721.7,2721.4,0.7645]
[1739598947555,3.93319,2721.7,2721.4,0.7645]
[1739598949684,3.67431,2721.6,2721.2,4.28238633]
[1739598950540,3.67446,2721.5,2721.2,3.7645]
[1739598950820,7.34903,2721.5,2721.2,3.7645]
[1739598951171,3.67446,2721.5,2721.2,3.7645]
[1739598953804,7.34902,2721.5,2721.2,3.7645]
[1739598954105,3.67446,2721.5,2721.2,3.7645]
[1739598955406,7.34901,2721.5,2721.2,3.7645]
[1739598955906,3.67446,2721.5,2721.2,3.7645]
[1739598957414,4.71803,2721.7,2721.2,3.7645]
[1739598957588,3.67438,2721.6,2721.2,3.7645]
[1739598958499,3.67445,2721.5,2721.2,3.7645]
[1739598968542,3.67438,2721.6,2721.2,3.7645]
[1739598969642,3.67445,2721.5,2721.2,3.7645]
[1739598970752,3.67454,2721.5,2721.2,3.7645]
[1739598971060,3.67458,2721.4,2721.2,3.7645]
[1739598973542,3.6743,2721.6,2721.2,3.7645]
[1739598973746,3.67444,2721.5,2721.2,3.7645]
[1739598977551,3.6743,2721.6,2721.2,3.7645]
[1739598977948,7.34873,2721.6,2721.2,3.7645]
[1739598978445,3.6743,2721.6,2721.2,3.7645]
[1739598979852,4.4094285,2721.8,2721.5,1.37886328]
[1739598980150,0.259,2722.3,2721.8,0.805]
[1739598980338,0.259,2722.3,2721.9,1.37886328]
[1739598980652,4.12349019,2722.3,2721.9,1.37886328]
[1739598980848,0.45011019,2722.3,2721.9,1.37886328]
[1739598981952,1.25111019,2722.3,2721.8,3.805]
[1739598982250,3.67368,2722.1,2721.8,3.805]
[1739598982621,3.67382,2722.0,2721.6,0.805]
[1739598982817,3.6739,2721.9,2721.6,0.805]
[1739598983327,3.67372,2722.1,2721.6,0.805]
[1739598984422,8.0831485,2722.1,2721.6,0.805]
[1739598984618,3.67379,2722.0,2721.6,0.805]
[1739598991167,7.34768,2722.0,2721.6,0.805]
[1739598991574,3.67379,2722.0,2721.6,0.805]
[1739598997264,4.4094285,2722.1,2721.6,3.805]
[1739598997860,4.4094285,2722.1,2721.7,0.7716]
[1739599000275,8.0831085,2722.1,2721.7,0.7716]
[1739599000788,4.4094285,2722.1,2721.7,0.7716]
[1739599002288,3.67356,2722.2,2721.7,0.7716]
[1739599002752,3.67356,2722.2,2721.8,1.37848542]
[1739599003086,3.67356,2722.2,2721.9,0.8292]
[1739599003486,3.67364,2722.1,2721.9,0.8292]
[1739599004789,0.259,2722.3,2721.9,0.8292]
[1739599004790,3.93245,2722.3,2721.9,0.8292]
[1739599005104,3.67351,2722.2,2721.9,0.8292]
[1739599007188,2.03769027,2722.4,2722.1,0.8292]
[1739599010292,5.71092027,2722.4,2722.1,0.8292]
[1739599011288,2.03769027,2722.4,2722.2,1.37848542]
[1739599011490,2.03769027,2722.4,2722.3,0.8292]
[1739599020101,2.03769027,2722.4,2722.1,0.7733]
[1739599020398,5.71091027,2722.4,2722.1,0.7733]
[1739599021998,9.38424027,2722.4,2721.9,4.29406854]
[1739599022504,5.71091027,2722.4,2721.9,4.29406854]
[1739599022804,2.03769027,2722.4,2722.1,0.7733]
[1739599036312,2.03769027,2722.4,2722.0,4.37848542]
[1739599036313,5.71092027,2722.4,2722.0,4.37848542]
[1739599042519,2.03769027,2722.4,2722.0,4.37848542]
[1739599047561,2.03769027,2722.4,2722.0,8.05217542]
[1739599048669,2.03769027,2722.4,2722.0,4.37848542]
[1739599052778,0.7751,2722.3,2722.0,4.37848542]
[1739599054366,0.7751,2722.3,2722.0,3.0]
[1739599058493,0.7751,2722.3,2722.0,4.37848542]
[1739599066325,2.03769027,2722.4,2722.0,5.21331198]
[1739599066774,2.03769027,2722.4,2722.1,0.03673422]
[1739599066976,2.03769027,2722.4,2722.2,1.37848542]
[1739599067890,2.03769027,2722.4,2722.2,2.14818542]
[1739599070430,2.03769027,2722.4,2722.2,1.37848542]
[1739599075440,2.03769027,2722.4,2722.2,5.05191542]
[1739599075642,2.03769027,2722.4,2722.2,6.38494462]
[1739599077020,2.03769027,2722.4,2722.3,4.44346]
[1739599077222,0.8245,2722.9,2722.3,4.44346]
[1739599077421,0.8245,2722.9,2722.5,1.37848542]
[1739599077619,1.76019944,2722.9,2722.5,1.37848542]
[1739599077954,5.43283944,2722.9,2722.5,1.37848542]
[1739599079154,0.8245,2722.9,2722.5,1.37848542]
[1739599079473,0.8245,2722.9,2722.5,5.05156542]
[1739599080514,0.19158595,2723.0,2722.5,5.05146542]
[1739599080960,3.67257,2722.9,2722.5,1.37848542]
[1739599081461,3.67257,2722.9,2722.4,3.0]
[1739599081625,0.8245,2722.8,2722.4,3.0]
[1739599082140,0.8245,2722.8,2722.3,5.82193542]
[1739599082141,4.49721,2722.8,2722.3,2.14858542]
[1739599082345,4.49721,2722.8,2722.4,3.0]
[1739599083954,0.8245,2722.6,2722.2,3.0]
[1739599085261,4.49746,2722.6,2722.2,3.0]
[1739599086163,4.49746,2722.6,2722.1,4.37848542]
[1739599087865,0.8245,2722.6,2722.1,4.37848542]
[1739599088032,0.8245,2722.6,2722.2,0.88223154]
[1739599088233,4.49754,2722.6,2722.2,0.88223154]
[1739599088775,3.67319,2722.5,2722.1,4.37848542]
[1739599092862,0.7907,2722.4,2722.1,4.37848542]
[1739599097573,0.7907,2722.6,2722.2,3.0]
[1739599098903,0.7907,2722.8,2722.4,0.7522]
[1739599099378,8.0819985,2722.9,2722.5,1.37848542]
[1739599100976,4.4094285,2722.9,2722.6,0.21306854]
[1739599103127,4.4094285,2722.9,2722.6,0.24979438]
[1739599103273,4.72193,2723.2,2722.6,0.24979438]
[1739599103711,4.91348994,2723.2,2722.6,0.24979438]
[1739599104016,4.91348994,2723.2,2722.7,1.37848542]
[1739599104175,3.6723,2723.1,2722.7,1.37848542]
[1739599104690,7.3447,2723.1,2722.7,1.37848542]
[1739599104875,3.6723,2723.1,2722.6,0.21306854]
[1739599105080,7.34471,2723.1,2722.6,0.21306854]
[1739599105906,3.67242,2723.0,2722.6,0.21306854]
[1739599107512,3.67242,2723.0,2722.7,0.4591554]
[1739599108310,4.91349994,2723.2,2722.7,0.4591554]
[1739599108513,3.6723,2723.1,2722.7,0.4591554]
[1739599109724,7.34468,2723.1,2722.7,0.4591554]
[1739599110014,7.34468,2723.1,2722.6,0.21306854]
[1739599110818,3.6723,2723.1,2722.6,0.21306854]
[1739599111422,3.6723,2723.1,2722.6,0.24979438]
[1739599111920,3.6723,2723.1,2722.7,3.0]
[1739599112711,3.6723,2723.1,2722.6,0.24979438]
[1739599112908,0.18262466,2722.8,2722.6,0.21306854]
[1739599113317,7.34471,2723.1,2722.6,0.21306854]
[1739599113526,3.67243,2723.0,2722.5,5.05156542]
[1739599113728,3.6723,2723.1,2722.5,5.05156542]
[1739599113914,7.34469,2723.1,2722.5,5.05156542]
[1739599114114,3.67242,2723.0,2722.5,5.05156542]
[1739599118840,3.67242,2723.0,2722.5,1.37848542]
[1739599122036,1.24125994,2723.2,2722.5,1.37848542]
[1739599122238,7.34475,2723.1,2722.5,1.37848542]
[1739599122630,3.67236,2723.1,2722.7,1.37848542]
[1739599122835,3.67236,2723.1,2722.7,2.15118542]
[1739599129360,5.76799814,2723.2,2722.7,2.15118542]
[1739599130660,3.67229,2723.1,2722.7,2.15118542]
[1739599137397,0.259,2723.2,2722.7,2.15118542]
[1739599137695,3.93117,2723.2,2722.7,2.15118542]
[1739599138098,3.67229,2723.1,2722.7,2.15118542]
[1739599141294,3.67242,2723.0,2722.7,0.7727]
[1739599141507,3.67229,2723.1,2722.7,0.7727]
[1739599143475,0.259,2723.2,2722.7,0.7727]
[1739599143670,3.9312,2723.2,2722.7,2.15118542]
[1739599144971,3.6722,2723.2,2722.7,3.03358996]
[1739599145160,3.9312,2723.2,2722.7,3.03358996]
[1739599146062,3.67229,2723.1,2722.7,3.03358996]
[1739599147659,3.9312,2723.2,2722.7,3.03358996]
[1739599148786,3.67231,2723.1,2722.7,3.03358996]
[1739599154331,3.67231,2723.1,2722.8,0.8083]
[1739599161248,3.67243,2723.0,2722.8,0.8083]
[1739599161441,3.67243,2723.0,2722.6,3.0]
[1739599161585,3.67243,2723.0,2722.6,3.7646]
[1739599164987,3.67256,2722.9,2722.6,3.7646]
[1739599165193,3.67324,2722.4,2722.0,0.7646]
[1739599165393,4.4851,2722.5,2722.1,1.37848542]
[1739599165953,0.812,2722.5,2722.1,1.37848542]
[1739599166510,0.812,2722.5,2722.1,4.37848542]
[1739599166911,0.812,2722.5,2722.1,1.37848542]
[1739599167228,4.48512,2722.5,2722.1,1.37848542]
[1739599171224,3.67304,2722.6,2722.1,4.37848542]
[1739599173357,7.34611,2722.6,2722.1,4.37848542]
[1739599173567,3.67304,2722.6,2722.1,4.37848542]
[1739599174374,5.2214285,2722.7,2722.1,8.05208542]
[1739599174576,8.8942785,2722.7,2722.1,8.05208542]
[1739599175159,10.22355475,2722.7,2722.1,8.05208542]
[1739599175469,8.0822685,2722.7,2722.2,0.7788]
[1739599175869,4.4094285,2722.7,2722.3,1.37848542]
[1739599176174,4.6684285,2722.7,2722.4,0.7788]
[1739599178468,4.4094285,2722.7,2722.5,1.37848542]
[1739599178639,4.4094285,2722.7,2722.6,0.8172]
[1739599178838,0.259,2722.9,2722.6,0.8172]
[1739599179751,3.93161,2722.9,2722.6,0.8172]
[1739599184952,0.259,2722.9,2722.6,0.8172]
[1739599186464,0.259,2722.9,2722.6,3.8172]
[1739599188388,3.93134,2723.1,2722.6,3.8172]
[1739599188794,0.259,2723.2,2722.6,3.8172]
[1739599188999,3.93119,2723.2,2722.7,0.7809]
[1739599189675,4.12276132,2723.2,2722.7,0.7809]
[1739599190499,3.67231,2723.1,2722.7,0.7809]
[1739599196678,0.45057132,2723.2,2722.7,2.15938542]
[1739599196886,4.12275132,2723.2,2722.7,2.15938542]
[1739599197704,0.19157132,2723.2,2722.7,5.26171396]
[1739599198008,0.259,2723.3,2723.0,0.7777]
[1739599198594,3.93105,2723.3,2723.0,0.7777]
[1739599199487,3.67196,2723.4,2723.0,0.7777]
[1739599199686,3.93089,2723.4,2723.0,0.7777]
[1739599200310,3.67204,2723.3,2723.0,0.7777]
[1739599200706,0.258,2723.4,2723.0,0.7777]
[1739599200893,3.67202,2723.3,2723.0,0.7777]
[1739599201302,3.92988,2723.4,2723.0,0.7777]
[1739599201807,3.6721,2723.3,2723.0,0.7777]
[1739599202272,0.258,2723.4,2723.0,0.7777]
[1739599202472,3.67215,2723.2,2723.0,0.7777]
[1739599202905,0.258,2723.4,2723.0,0.7777]
[1739599203980,3.93001,2723.4,2723.0,0.7777]
[1739599204311,3.93001,2723.4,2723.0,1.29331854]
[1739599204504,3.67203,2723.3,2723.0,1.29331854]
[1739599204706,0.258,2723.4,2723.0,1.29331854]
[1739599204901,3.67181,2723.5,2723.1,0.7777]
[1739599205109,0.258,2723.4,2723.1,0.7777]
[1739599205291,3.92994,2723.4,2723.1,0.7777]
[1739599205911,0.258,2723.4,2723.1,0.7777]
[1739599206307,4.4094285,2723.6,2723.1,6.71124696]
[1739599206508,0.258,2723.5,2723.1,6.71124696]
[1739599206714,4.4094285,2723.6,2723.4,0.7777]
[1739599208222,8.0811185,2723.6,2723.4,0.7777]
[1739599208517,8.0811185,2723.6,2723.2,0.7777]
[1739599209597,3.67197,2723.4,2722.9,0.7777]
[1739599209809,3.67203,2723.3,2722.9,0.7777]
[1739599210296,3.67203,2723.3,2722.9,3.09408196]
[1739599211524,3.67203,2723.3,2723.0,3.0]
[1739599214752,3.67238,2723.1,2722.6,0.7995]
[1739599214927,3.67235,2723.1,2722.6,0.7995]
[1739599215289,3.67257,2722.9,2722.6,0.7995]
[1739599215584,3.6729,2722.7,2722.3,0.7995]
[1739599215787,3.67296,2722.6,2722.3,0.7995]
[1739599215989,4.4566,2722.7,2722.3,0.7995]
[1739599216189,3.6729,2722.7,2722.3,0.7995]
[1739599216626,3.67296,2722.6,2722.3,0.7995]
[1739599216821,3.67296,2722.6,2722.1,5.17798542]
[1739599217028,3.67314,2722.5,2722.1,3.7995]
[1739599218742,3.67314,2722.5,2722.1,0.7995]
[1739599219313,3.67323,2722.4,2722.1,0.7995]
[1739599221850,3.67341,2722.3,2721.8,0.7995]
[1739599222001,3.67341,2722.3,2721.8,1.68472054]
[1739599222403,3.67362,2722.2,2721.8,0.7995]
[1739599223041,3.67364,2722.1,2721.8,0.7995]
[1739599223951,3.67377,2722.0,2721.8,0.7995]
[1739599224117,3.67364,2722.1,2721.5,2.17798542]
[1739599224320,3.67377,2722.0,2721.5,5.17798542]
[1739599225643,4.4572,2722.2,2721.5,5.85235542]
[1739599225849,0.259,2722.1,2721.7,1.37848542]
[1739599226376,3.93272,2722.1,2721.7,1.37848542]
[1739599226715,0.259,2722.1,2721.7,1.37848542]
[1739599226917,3.93269,2722.1,2721.7,1.37848542]
[1739599229365,0.259,2722.1,2721.7,1.37848542]
[1739599230522,3.9327,2722.1,2721.7,1.37848542]
[1739599231155,3.67379,2722.0,2721.7,1.37848542]
[1739599232356,3.67379,2722.0,2721.5,2.17798542]
[1739599235131,3.67391,2721.9,2721.5,2.17798542]
[1739599235459,3.67391,2721.9,2721.5,0.7995]
[1739599235677,3.67404,2721.8,2721.5,0.7995]
[1739599235839,7.34819,2721.8,2721.5,0.7995]
[1739599236169,3.67404,2721.8,2721.5,0.7995]
[1739599236471,3.67417,2721.7,2721.5,0.7995]
[1739599236627,3.67404,2721.8,2721.5,0.7995]
[1739599236926,3.67418,2721.7,2721.5,0.7995]
[1739599237732,3.67404,2721.8,2721.5,0.7995]
[1739599238122,3.67418,2721.7,2721.5,0.7995]
[1739599240661,3.67418,2721.7,2721.4,3.0]
[1739599240966,3.67431,2721.6,2721.4,3.0]
[1739599244067,3.67426,2721.7,2721.4,3.0]
[1739599244871,3.67432,2721.6,2721.4,3.0]
[1739599245068,3.67432,2721.6,2721.3,2.14138542]
[1739599245069,7.34875,2721.6,2721.3,2.14138542]
[1739599245272,3.67432,2721.6,2721.3,0.7629]
[1739599246373,3.67445,2721.5,2721.3,0.7629]
[1739599246573,3.67457,2721.4,2721.1,2.14138542]
[1739599247070,7.34926,2721.4,2720.9,5.14138542]
[1739599247293,3.67472,2721.3,2720.9,5.14138542]
[1739599248244,3.67487,2721.2,2720.9,2.14138542]
[1739599248635,3.67457,2721.4,2720.9,5.14138542]
[1739599248839,3.67457,2721.4,2720.9,3.02306696]
[1739599249675,3.67474,2721.3,2720.9,1.64458154]
[1739599250170,3.67457,2721.4,2720.9,1.64458154]
[1739599250376,3.67474,2721.3,2720.9,0.7629]
[1739599252171,3.67457,2721.4,2720.9,0.7629]
[1739599253085,7.34926,2721.4,2720.9,0.7629]
[1739599253582,3.67476,2721.3,2720.9,0.7629]
[1739599254398,3.67485,2721.2,2720.9,0.7629]
[1739599256973,4.43266,2721.3,2720.9,0.7629]
[1739599257180,3.67486,2721.2,2720.9,0.7629]
[1739599258622,3.67486,2721.2,2720.7,3.7872]
[1739599260239,3.67486,2721.2,2719.4,3.88288359]
[1739599260240,1.069752,2721.2,2720.2,0.7872]
[1739599260413,3.67554,2720.7,2720.2,4.46338]
[1739599260618,3.67554,2720.7,2720.2,0.7872]
[1739599263234,3.67526,2720.9,2720.3,3.67596]
[1739599263435,3.67526,2720.9,2720.4,0.7872]
[1739599263739,3.67562,2720.7,2720.4,0.7872]
[1739599264247,3.67100177,2720.7,2720.4,0.7872]
[1739599265547,4.4094285,2721.0,2720.5,3.0]
[1739599265719,4.4094285,2721.0,2720.6,0.7872]
[1739599265926,4.6684285,2721.0,2720.6,0.7872]
[1739599266442,4.4094285,2721.0,2720.8,0.7872]
[1739599267542,3.67525,2720.9,2720.4,0.7872]
[1739599269455,3.67547,2720.8,2720.4,0.7872]
[1739599273559,3.67525,2720.9,2720.4,0.7872]
[1739599273773,4.4094285,2721.0,2720.4,0.7872]
[1739599273976,8.0846285,2721.0,2720.5,3.0]
[1739599274324,4.4094285,2721.0,2720.5,3.0]
[1739599275050,4.4094285,2721.0,2720.7,3.8022]
[1739599275662,0.259,2721.2,2720.7,3.8022]
[1739599275971,0.259,2721.4,2721.0,0.8022]
[1739599276322,3.93358,2721.4,2721.0,0.8022]
[1739599277164,0.259,2721.4,2721.0,0.8022]
[1739599277857,3.67481,2721.3,2721.0,0.8022]
[1739599279356,3.67485,2721.2,2720.8,0.813]
[1739599279662,3.675,2721.1,2720.8,0.813]
[1739599279868,3.67513,2721.0,2720.6,0.813]
[1739599280030,3.67525,2720.9,2720.4,4.48891]
[1739599280363,3.67525,2720.9,2720.5,3.0]
[1739599280529,4.45275,2720.9,2720.5,3.0]
[1739599280864,8.12811,2720.9,2720.5,3.0]
[1739599281167,8.12811,2720.9,2720.0,6.43446593]
[1739599281168,3.67552,2720.7,2720.2,0.813]
[1739599281464,3.67552,2720.7,2720.3,0.748928]
[1739599281864,3.67552,2720.7,2720.2,0.813]
[1739599282478,3.67566,2720.6,2720.2,0.813]
[1739599283043,3.67552,2720.7,2720.2,0.813]
[1739599283967,7.35117,2720.7,2720.2,0.813]
[1739599284545,3.67552,2720.7,2720.2,0.813]
[1739599285564,3.67568,2720.6,2720.2,0.813]
[1739599286067,3.67552,2720.7,2720.2,0.813]
[1739599289658,3.67567,2720.6,2720.2,0.813]
[1739599291300,3.6758,2720.5,2720.2,0.813]
[1739599291873,3.6757,2720.6,2720.2,0.813]
[1739599292896,3.67552,2720.7,2720.2,0.813]
[1739599293095,3.67566,2720.6,2720.2,0.813]
[1739599294429,3.67552,2720.7,2720.2,0.813]
[1739599294591,7.35115,2720.7,2720.2,0.813]
[1739599295087,3.67567,2720.6,2720.2,0.813]
[1739599295289,3.67552,2720.7,2720.2,0.813]
[1739599295490,7.35115,2720.7,2720.2,0.813]
[1739599295994,3.67568,2720.6,2720.2,0.813]
[1739599296922,7.35117,2720.7,2720.2,0.813]
[1739599297426,3.67567,2720.6,2720.2,0.813]
[1739599300314,3.67588,2720.5,2720.2,0.813]
[1739599300519,8.43418,2720.5,2720.0,0.7871]
[1739599300816,3.67594,2720.4,2720.0,0.7871]
[1739599303191,7.35199,2720.4,2720.0,0.7871]
[1739599303397,3.67594,2720.4,2720.0,0.7871]
[1739599304790,0.259,2720.5,2720.0,4.46348]
[1739599305019,0.259,2720.5,2720.2,0.7871]
[1739599306030,3.67595,2720.4,2720.2,0.7871]
[1739599308223,0.259,2720.5,2720.2,0.7871]
[1739599308514,4.4094285,2720.8,2720.4,3.0]
[1739599308721,0.259,2720.9,2720.5,0.7871]
[1739599309087,0.44988681,2720.9,2720.5,0.7871]
[1739599310317,4.12521681,2720.9,2720.5,0.7871]
[1739599310620,0.44988681,2720.9,2720.5,0.7871]
[1739599311992,3.67539,2720.8,2720.5,0.7871]
[1739599313127,0.44988681,2720.9,2720.5,0.7871]
[1739599313423,4.12517681,2720.9,2720.5,0.7871]
[1739599314027,0.44988681,2720.9,2720.5,0.7871]
[1739599314332,4.12513681,2720.9,2720.5,0.7871]
[1739599315130,1.70760904,2720.9,2720.5,0.7871]
[1739599315425,3.67604,2720.4,2720.1,0.7871]
[1739599316493,3.67604,2720.4,2719.9,0.8292]
[1739599317542,3.67609,2720.3,2719.9,0.8292]
[1739599318293,3.67622,2720.2,2719.9,0.8292]
[1739599319434,3.672674,2720.1,2719.9,0.8292]
[1739599321049,3.672674,2720.1,2719.7,0.8292]
[1739599323245,3.67647,2720.0,2719.7,0.8292]
[1739599323537,8.8906185,2720.2,2719.7,0.8292]
[1739599323864,8.0857185,2720.2,2719.7,0.8292]
[1739599324079,4.4094285,2720.2,2719.7,4.50607]
[1739599324732,4.4094285,2720.2,2719.8,6.67665]
[1739599324915,4.4094285,2720.2,2720.0,0.8292]
[1739599326269,0.259,2720.3,2720.0,0.8292]
[1739599327687,0.259,2720.5,2720.0,0.8292]
[1739599327886,0.259,2720.5,2720.2,3.67618]
[1739599328846,4.4094285,2720.6,2720.1,3.8292]
[1739599329162,4.4094285,2720.6,2720.1,8.53189059]
[1739599329896,8.0851185,2720.6,2720.1,4.85557059]
[1739599330098,3.67583,2720.5,2720.1,1.85557059]
[1739599330382,3.67608,2720.3,2719.9,0.8292]
[1739599330689,3.67607,2720.3,2719.9,0.8292]
[1739599331586,4.48086,2720.4,2719.9,0.8292]
[1739599332733,3.67607,2720.3,2719.9,0.8292]
[1739599334750,3.67628,2720.2,2719.7,0.7998]
[1739599335059,3.67628,2720.2,2719.7,4.24747]
[1739599335268,3.67607,2720.3,2719.7,4.24747]
[1739599335473,3.67643,2720.1,2719.7,0.7998]
[1739599339013,3.67662,2719.9,2719.7,0.7998]
[1739599340361,3.67674,2719.8,2719.7,0.7998]
[1739599340761,3.67674,2719.8,2719.5,3.7998]
[1739599342300,3.67674,2719.8,2719.5,0.7998]
[1739599342830,3.67699,2719.7,2719.5,0.7998]
[1739599343027,3.67699,2719.7,2719.3,0.7998]
[1739599343595,3.67701,2719.6,2719.3,0.7998]
[1739599344092,7.35398,2719.7,2719.3,0.7998]
[1739599344289,3.67699,2719.7,2719.3,0.7998]
[1739599344492,7.35399,2719.7,2719.3,0.7998]
[1739599344689,3.67702,2719.6,2719.3,0.7998]
[1739599345119,3.67714,2719.5,2719.3,0.7998]
[1739599345296,3.67714,2719.5,2719.1,0.7998]
[1739599345297,3.67721,2719.5,2719.1,0.7998]
[1739599345630,3.67728,2719.4,2719.1,0.7998]
[1739599345837,3.67741,2719.3,2719.1,0.7998]
[1739599346693,3.67741,2719.3,2718.9,3.7938]
[1739599347526,3.67741,2719.3,2718.9,0.7938]
[1739599348330,8.13124,2719.5,2718.9,0.7938]
[1739599348634,3.67738,2719.4,2718.9,0.7938]
[1739599348934,0.7768,2719.5,2719.1,3.67768]
[1739599349137,0.259,2719.8,2719.3,4.47118]
[1739599350937,2.25934758,2720.1,2719.2,3.0]
[1739599351103,0.259,2719.9,2719.4,0.7938]
[1739599351304,0.259,2719.9,2719.4,4.47095]
[1739599352201,0.259,2719.9,2719.4,3.7938]
[1739599352402,0.259,2719.9,2719.4,7.47104]
[1739599354221,0.259,2719.9,2719.5,3.67714]
[1739599354406,0.259,2719.9,2719.4,7.47104]
[1739599354606,0.259,2719.9,2719.4,7.47096]
[1739599354823,0.259,2719.9,2719.4,8.27563726]
[1739599355407,2.4502368,2720.1,2719.6,3.67689]
[1739599355607,2.4502368,2720.1,2719.7,7.47055]
[1739599355608,1.9324368,2720.1,2719.7,7.47055]
[1739599355837,1.9324368,2720.1,2719.7,7.47065]
[1739599356049,1.9324368,2720.1,2719.7,3.7938]
[1739599356424,1.9324368,2720.1,2719.7,7.47065]
[1739599356648,1.6734368,2720.1,2719.8,4.4884815]
[1739599356848,1.48254758,2720.1,2719.9,3.0]
[1739599367494,1.48254758,2720.1,2719.9,6.67647]
[1739599367699,1.48254758,2720.1,2719.9,3.0]
[1739599368786,1.48254758,2720.1,2720.0,3.67647]
[1739599368969,1.48254758,2720.1,2720.0,5.532479]
[1739599371301,0.259,2720.6,2720.3,3.0]
[1739599372704,0.806,2720.8,2720.4,0.8207]
[1739599373122,4.12546366,2720.9,2720.4,0.8207]
[1739599373605,3.86646366,2720.9,2720.4,0.8207]
[1739599373933,12.04768655,2721.0,2720.5,3.0]
[1739599374112,7.56656655,2721.0,2720.5,6.67576]
[1739599374478,7.56656655,2721.0,2720.5,3.67576]
[1739599374680,7.56656655,2721.0,2720.5,6.67576]
[1739599375381,3.67462,2721.4,2720.8,7.49608]
[1739599375588,0.8075,2721.8,2721.1,3.0]
[1739599375821,4.48163,2721.8,2721.0,6.675]
[1739599376582,0.8075,2721.8,2721.0,6.675]
[1739599376777,3.67429,2721.7,2721.0,6.675]
[1739599377322,3.67432,2721.6,2721.0,6.675]
[1739599377623,3.67432,2721.6,2721.1,1.05502769]
[1739599377826,3.67429,2721.7,2721.1,1.05502769]
[1739599378920,3.67431,2721.6,2721.1,1.05502769]
[1739599379629,1.0675,2721.8,2721.2,4.48979]
[1739599379927,3.67432,2721.6,2721.2,0.815]
[1739599380130,3.67432,2721.6,2721.3,0.18700277]
[1739599382041,3.67431,2721.6,2721.3,0.18700277]
[1739599384554,3.67445,2721.5,2721.3,0.18700277]
[1739599384714,4.47064,2721.3,2720.8,0.815]
[1739599384916,3.67489,2721.2,2720.8,0.815]
[1739599386339,4.47064,2721.3,2720.8,0.815]
[1739599386540,4.47064,2721.3,2720.9,0.3815]
[1739599386844,3.67489,2721.2,2720.9,0.3815]
[1739599387848,3.67506,2721.1,2720.9,0.3815]
[1739599388063,3.67525,2720.9,2720.5,0.815]
[1739599388822,3.67502,2721.1,2720.5,0.815]
[1739599389433,3.67526,2720.9,2720.5,0.815]
[1739599389757,3.67539,2720.8,2720.3,3.815]
[1739599389921,3.67539,2720.8,2720.3,4.564111]
[1739599391022,4.47106,2720.9,2720.3,4.564111]
[1739599391361,0.8117,2721.2,2720.4,0.03675648]
[1739599391535,3.67508,2721.1,2720.6,3.831]
[1739599392668,3.67487,2721.2,2720.6,4.581672]
[1739599392840,3.67487,2721.2,2720.6,8.257312]